[Event "48th Indian U15-ch Open 2023"]
[Site "Jalgaon"]
[Date "2023.12.30"]
[Round "5.6"]
[White "Daksh Goyal"]
[Black "Bivor Adak"]
[Result "1-0"]
[WhiteElo "1814"]
[BlackElo "1791"]
[PlyCount "154"]
[EventDate "2023.12.30"]
[EventType "swiss"]
[EventCountry "IND"]
[TimeControl "5400+30"]

1. e4 {[%emt 0:00:06]} e5 {[%emt 0:00:44]} 2. Nf3 {[%emt 0:00:07]} Nc6 {[%emt 0:00:33]} 3. Bb5 {[%emt 0:00:07]} a6 {[%emt 0:01:54]} 4. Ba4 {[%emt 0:00:06]} b5 {[%emt 0:01:08]} 5. Bb3 {[%emt 0:00:03]} Na5 {[%emt 0:00:20]} 6. Bxf7+ {[%emt 0:24:45]} Kxf7 {[%emt 0:00:15]} 7. Nxe5+ {[%emt 0:00:09]} Ke7 {[%emt 0:00:08]} 8. d4 {[%emt 0:01:10]} Nf6 {[%emt 0:01:21]} 9. O-O {[%emt 0:03:18]} Bb7 {[%emt 0:03:41]} 10. Qe1 {[%emt 0:15:10]} c5 {[%emt 0:11:11]} 11. dxc5 {[%emt 0:13:10]} Ke8 {[%emt 0:00:18]} 12. b4 {[%emt 0:07:20]} Nc6 {[%emt 0:00:54]} 13. Nxc6 {[%emt 0:01:41]} Bxc6 {[%emt 0:00:09]} 14. Bb2 {[%emt 0:03:04]} Be7 {[%emt 0:02:18]} 15. Nc3 {[%emt 0:02:05]} Kf7 {[%emt 0:02:33]} 16. Rd1 {[%emt 0:05:17]} Qb8 {[%emt 0:07:10]} 17. e5 {[%emt 0:04:28]} Ng4 {[%emt 0:01:39]} 18. f4 {[%emt 0:03:49]} Re8 {[%emt 0:05:16]} 19. Qg3 {[%emt 0:04:55]} Nh6 {[%emt 0:00:10]} 20. Nd5 {[%emt 0:02:45]} Bf8 {[%emt 0:00:41]} 21. Qb3 {[%emt 0:02:18]} Qb7 {[%emt 0:05:59]} 22. Nb6+ {[%emt 0:01:27]} Ke7 {[%emt 0:00:09]} 23. f5 {[%emt 0:01:12]} Kd8 {[%emt 0:06:34]} 24. e6 {[%emt 0:00:50]} d5 {[%emt 0:00:29]} 25. Nxa8 {[%emt 0:01:08]} Qxa8 {[%emt 0:00:06]} 26. f6 {[%emt 0:01:05]} gxf6 {[%emt 0:00:10]} 27. Bxf6+ {[%emt 0:00:11]} Kc7 {[%emt 0:00:24]} 28. Rde1 {[%emt 0:01:18]} Be7 {[%emt 0:01:20]} 29. Qg3+ {[%emt 0:00:21]} Kb7 {[%emt 0:00:17]} 30. Qg7 {[%emt 0:01:01]} Ng8 {[%emt 0:00:05]} 31. Bxe7 {[%emt 0:00:34]} Nxe7 {[%emt 0:02:23]} 32. Rf7 {[%emt 0:00:29]} Qd8 {[%emt 0:00:05]} 33. Qe5 {[%emt 0:00:33]} Kc8 {[%emt 0:02:59]} 34. Qd6 {[%emt 0:00:08]} Bb7 {[%emt 0:00:40]} 35. Qxd8+ {[%emt 0:00:48]} Kxd8 {[%emt 0:00:06]} 36. Rxh7 {[%emt 0:00:05]} Bc8 {[%emt 0:01:15]} 37. c3 {[%emt 0:00:57]} Rg8 {[%emt 0:00:07]} 38. Rf7 {[%emt 0:00:32]} Ke8 {[%emt 0:00:08]} 39. Rf6 {[%emt 0:00:14]} Bb7 {[%emt 0:00:26]} 40. g3 {[%emt 0:00:37]} Bc8 {[%emt 0:02:48]} 41. Kf2 {[%emt 0:00:55]} Nc6 {[%emt 0:00:01]} 42. Rf5 {[%emt 0:00:32]} d4 {[%emt 0:00:58]} 43. cxd4 {[%emt 0:00:02]} Nxd4 {[%emt 0:00:08]} 44. Rf6 {[%emt 0:00:07]} Nc6 {[%emt 0:00:57]} 45. a3 {[%emt 0:00:40]} Ne7 {[%emt 0:01:54]} 46. h4 {[%emt 0:00:15]} Bb7 {[%emt 0:00:09]} 47. Re5 {[%emt 0:00:48]} Rg4 {[%emt 0:01:34]} 48. Rh5 {[%emt 0:00:45]} Ng8 {[%emt 0:00:16]} 49. Rf4 {[%emt 0:00:47]} Rg6 {[%emt 0:00:06]} 50. Rff5 {[%emt 0:00:40]} Nf6 {[%emt 0:00:40]} 51. Rh8+ {[%emt 0:00:16]} Ke7 {[%emt 0:00:01]} 52. Rf4 {[%emt 0:00:42]} Kxe6 {[%emt 0:00:29]} 53. Rb8 {[%emt 0:00:23]} Bc6 {[%emt 0:01:18]} 54. Rd8 {[%emt 0:00:38]} Bd7 {[%emt 0:02:10]} 55. Rd4 {[%emt 0:00:30]} Ke7 {[%emt 0:00:43]} 56. Rb8 {[%emt 0:00:17]} Ng4+ {[%emt 0:00:51]} 57. Ke2 {[%emt 0:00:38]} Re6+ {[%emt 0:03:50]} 58. Kd2 {[%emt 0:00:26]} Ne5 {[%emt 0:00:09]} 59. Kc3 {[%emt 0:00:31]} Nc6 {[%emt 0:00:31]} 60. Rb6 {[%emt 0:00:32]} Nxd4 {[%emt 0:00:04]} 61. Kxd4 {[%emt 0:00:05]} Re1 {[%emt 0:03:54]} 62. Rxa6 {[%emt 0:00:13]} Rg1 {[%emt 0:00:28]} 63. Rg6 {[%emt 0:00:59]} Ra1 {[%emt 0:01:11]} 64. h5 {[%emt 0:00:44]} Rxa3 {[%emt 0:00:18]} 65. c6 {[%emt 0:00:33]} Be8 {[%emt 0:01:42]} 66. c7 {[%emt 0:00:36]} Ra8 {[%emt 0:00:01]} 67. Rg8 {[%emt 0:00:26]} Kf7 {[%emt 0:00:37]} 68. Rg5 {[%emt 0:00:34]} Rc8 {[%emt 0:04:38]} 69. h6 {[%emt 0:00:23]} Kf6 {[%emt 0:00:17]} 70. Rg8 {[%emt 0:00:38]} Rxc7 {[%emt 0:00:47]} 71. Rxe8 {[%emt 0:00:09]} Kg6 {[%emt 0:00:31]} 72. Re6+ {[%emt 0:00:32]} Kh7 {[%emt 0:00:07]} 73. Kd5 {[%emt 0:00:41]} Rc4 {[%emt 0:00:18]} 74. Re4 {[%emt 0:00:10]} Rc7 {[%emt 0:00:13]} 75. Rh4 {[%emt 0:00:54]} Rc3 {[%emt 0:00:14]} 76. Kd6 {[%emt 0:00:28]} Rxg3 {[%emt 0:00:25]} 77. Rh5 {[%emt 0:00:29]} Rg8 {[%emt 0:04:27]} 1-0

[Event "48th Indian U15-ch Open 2023"]
[Site "Jalgaon"]
[Date "2023.12.30"]
[Round "5.7"]
[White "Shaik Sumer Arsh"]
[Black "Ashwinth Michael"]
[Result "0-1"]
[WhiteElo "2255"]
[BlackElo "1661"]
[PlyCount "112"]
[EventDate "2023.12.30"]
[EventType "swiss"]
[EventCountry "IND"]
[TimeControl "5400+30"]

1. d4 {[%emt 0:00:03]} d5 {[%emt 0:00:11]} 2. c4 {[%emt 0:00:11]} c6 {[%emt 0:00:08]} 3. Nc3 {[%emt 0:00:07]} Nf6 {[%emt 0:00:07]} 4. e3 {[%emt 0:00:06]} e6 {[%emt 0:00:12]} 5. Nf3 {[%emt 0:00:15]} Nbd7 {[%emt 0:00:11]} 6. Be2 {[%emt 0:00:18]} Bd6 {[%emt 0:00:08]} 7. O-O {[%emt 0:00:14]} O-O {[%emt 0:00:09]} 8. b3 {[%emt 0:00:04]} b6 {[%emt 0:00:10]} 9. Bb2 {[%emt 0:00:06]} Bb7 {[%emt 0:00:07]} 10. Qc2 {[%emt 0:00:10]} Qe7 {[%emt 0:00:17]} 11. Rad1 {[%emt 0:00:07]} Rad8 {[%emt 0:00:07]} 12. Rfe1 {[%emt 0:00:16]} Rfe8 {[%emt 0:00:11]} 13. Bf1 {[%emt 0:03:31]} c5 {[%emt 0:01:20]} 14. cxd5 {[%emt 0:00:51]} exd5 {[%emt 0:00:23]} 15. g3 {[%emt 0:01:18]} Rc8 {[%emt 0:01:56]} 16. Qb1 {[%emt 0:27:48]} h6 {[%emt 0:06:33]} 17. Bg2 {[%emt 0:09:04]} Qe6 {[%emt 0:05:00]} 18. Qa1 {[%emt 0:11:54]} Bf8 {[%emt 0:08:29]} 19. Ne5 {[%emt 0:05:09]} Nxe5 {[%emt 0:08:18]} 20. dxe5 {[%emt 0:00:05]} Ne4 {[%emt 0:00:17]} 21. Nxe4 {[%emt 0:14:46]} dxe4 {[%emt 0:00:18]} 22. Qb1 {[%emt 0:00:43]} f5 {[%emt 0:07:13]} 23. Bf1 {[%emt 0:02:24]} Kh7 {[%emt 0:05:06]} 24. Bc4 {[%emt 0:00:59]} Qc6 {[%emt 0:01:42]} 25. a4 {[%emt 0:01:54]} a6 {[%emt 0:00:25]} 26. h4 {[%emt 0:07:32]} Rc7 {[%emt 0:07:08]} 27. Bc3 {[%emt 0:01:39]} b5 {[%emt 0:01:20]} 28. Bd5 {[%emt 0:00:37]} Qb6 {[%emt 0:01:35]} 29. a5 {[%emt 0:00:54]} Qa7 {[%emt 0:02:03]} 30. Qc2 {[%emt 0:01:53]} Bxd5 {[%emt 0:03:24]} 31. Rxd5 {[%emt 0:00:01]} Rd7 {[%emt 0:00:00]} 32. Rxd7 {[%emt 0:01:01]} Qxd7 {[%emt 0:00:07]} 33. Rd1 {[%emt 0:00:02]} Qc7 {[%emt 0:00:08]} 34. Rd5 {[%emt 0:01:05]} Rd8 {[%emt 0:01:44]} 35. Qd2 {[%emt 0:00:59]} Be7 {[%emt 0:00:06]} 36. e6 {[%emt 0:00:25]} b4 {[%emt 0:01:34]} 37. Be5 {[%emt 0:00:07]} Qxe5 {[%emt 0:00:42]} 38. Rxd8 {[%emt 0:00:05]} Bxd8 {[%emt 0:00:08]} 39. Qxd8 {[%emt 0:00:02]} Qxe6 {[%emt 0:00:13]} 40. Qb6 {[%emt 0:01:21]} Qxb3 {[%emt 0:01:12]} 41. Qxc5 {[%emt 0:00:08]} Qd1+ {[%emt 0:00:24]} 42. Kh2 {[%emt 0:01:29]} Qf3 {[%emt 0:00:08]} 43. Qc2 {[%emt 0:00:15]} b3 {[%emt 0:01:20]} 44. Qd2 {[%emt 0:00:26]} f4 {[%emt 0:03:23]} 45. gxf4 {[%emt 0:03:35]} Qg4 {[%emt 0:00:36]} 46. Qd5 {[%emt 0:04:10]} Qxh4+ {[%emt 0:00:33]} 47. Kg2 {[%emt 0:00:00]} Qg4+ {[%emt 0:00:32]} 48. Kh2 {[%emt 0:00:14]} b2 {[%emt 0:18:20]} 49. Qxe4+ {[%emt 0:00:01]} Qg6 {[%emt 0:00:11]} 50. f5 {[%emt 0:00:04]} Qf6 {[%emt 0:01:36]} 51. Kh3 {[%emt 0:03:16]} Kg8 {[%emt 0:02:15]} 52. Kg2 {[%emt 0:01:26]} Qg5+ {[%emt 0:01:00]} 53. Kh2 {[%emt 0:00:28]} Qd8 {[%emt 0:01:37]} 54. Qb4 {[%emt 0:00:59]} Qc7+ {[%emt 0:00:20]} 55. Kg2 {[%emt 0:00:06]} Qc6+ {[%emt 0:00:08]} 56. e4 {[%emt 0:00:56]} Qb5 {[%emt 0:00:10]} 0-1

[Event "48th Indian U15-ch Open 2023"]
[Site "Jalgaon"]
[Date "2023.12.30"]
[Round "5.8"]
[White "Nirnay Garg"]
[Black "Sri Charan Sandipagu"]
[Result "1-0"]
[WhiteElo "1894"]
[BlackElo "1660"]
[PlyCount "79"]
[EventDate "2023.12.30"]
[EventType "swiss"]
[EventCountry "IND"]
[TimeControl "5400+30"]

1. e4 {[%emt 0:00:07]} Nc6 {[%emt 0:01:13]} 2. d4 {[%emt 0:01:26]} e5 {[%emt 0:00:07]} 3. d5 {[%emt 0:00:54]} Nce7 {[%emt 0:02:24]} 4. c4 {[%emt 0:02:17]} Nf6 {[%emt 0:00:00]} 5. Nc3 {[%emt 0:01:34]} Ng6 {[%emt 0:00:00]} 6. Be3 {[%emt 0:03:59]} Bb4 {[%emt 0:02:57]} 7. f3 {[%emt 0:02:39]} d6 {[%emt 0:02:24]} 8. Qa4+ {[%emt 0:00:28]} Bd7 {[%emt 0:00:08]} 9. Qxb4 {[%emt 0:00:15]} a5 {[%emt 0:00:03]} 10. Qb3 {[%emt 0:00:58]} Nh5 {[%emt 0:00:06]} 11. Nge2 {[%emt 0:01:16]} O-O {[%emt 0:00:36]} 12. c5 {[%emt 0:00:58]} Rb8 {[%emt 0:01:04]} 13. cxd6 {[%emt 0:00:20]} cxd6 {[%emt 0:00:04]} 14. Qb6 {[%emt 0:00:29]} Qe7 {[%emt 0:00:20]} 15. Nb5 {[%emt 0:01:25]} Bxb5 {[%emt 0:06:20]} 16. Qxb5 {[%emt 0:00:03]} Rbc8 {[%emt 0:08:08]} 17. Nc3 {[%emt 0:02:01]} f5 {[%emt 0:07:19]} 18. exf5 {[%emt 0:01:18]} Nh4 {[%emt 0:02:48]} 19. O-O-O {[%emt 0:03:41]} Nxf5 {[%emt 0:00:53]} 20. Qd3 {[%emt 0:02:17]} e4 {[%emt 0:07:45]} 21. fxe4 {[%emt 0:00:57]} Nxe3 {[%emt 0:00:07]} 22. Qxe3 {[%emt 0:00:07]} Nf6 {[%emt 0:03:16]} 23. Qh3 {[%emt 0:11:38]} Kh8 {[%emt 0:00:18]} 24. Kb1 {[%emt 0:02:07]} Qc7 {[%emt 0:01:02]} 25. Bd3 {[%emt 0:01:15]} h6 {[%emt 0:03:07]} 26. Rhf1 {[%emt 0:00:28]} Ra8 {[%emt 0:16:10]} 27. g4 {[%emt 0:01:06]} Qd7 {[%emt 0:01:22]} 28. Rf5 {[%emt 0:00:26]} Ng8 {[%emt 0:07:32]} 29. e5 {[%emt 0:00:57]} dxe5 {[%emt 0:00:12]} 30. Rxe5 {[%emt 0:00:19]} Rf2 {[%emt 0:02:27]} 31. Re6 {[%emt 0:01:29]} Rc8 {[%emt 0:01:09]} 32. Qe3 {[%emt 0:00:26]} Rxh2 {[%emt 0:11:34]} 33. Qf4 {[%emt 0:00:22]} Rxc3 {[%emt 0:06:23]} 34. Qxh2 {[%emt 0:02:00]} Rc5 {[%emt 0:01:49]} 35. Qd6 {[%emt 0:02:06]} Qc8 {[%emt 0:02:25]} 36. Bf5 {[%emt 0:00:41]} Qc7 {[%emt 0:02:37]} 37. Qxc7 {[%emt 0:00:03]} Rxc7 {[%emt 0:00:10]} 38. d6 {[%emt 0:00:10]} Rc8 {[%emt 0:01:08]} 39. d7 {[%emt 0:00:06]} Rd8 {[%emt 0:01:06]} 40. Re8 {[%emt 0:00:03]} 1-0

[Event "48th Indian U15-ch Open 2023"]
[Site "Jalgaon"]
[Date "2023.12.30"]
[Round "5.9"]
[White "Niladri Banerjee"]
[Black "Jihan Tejas Shah"]
[Result "0-1"]
[WhiteElo "1651"]
[BlackElo "1891"]
[PlyCount "154"]
[EventDate "2023.12.30"]
[EventType "swiss"]
[EventCountry "IND"]
[TimeControl "5400+30"]

1. d4 {[%emt 0:00:07]} Nf6 {[%emt 0:00:07]} 2. c4 {[%emt 0:00:06]} g6 {[%emt 0:00:10]} 3. Nc3 {[%emt 0:00:08]} Bg7 {[%emt 0:00:03]} 4. e4 {[%emt 0:00:07]} d6 {[%emt 0:00:04]} 5. h3 {[%emt 0:00:08]} O-O {[%emt 0:00:06]} 6. Nf3 {[%emt 0:00:05]} e5 {[%emt 0:00:04]} 7. dxe5 {[%emt 0:00:54]} dxe5 {[%emt 0:00:08]} 8. Bg5 {[%emt 0:00:15]} Nbd7 {[%emt 0:00:28]} 9. Be2 {[%emt 0:01:37]} Nc5 {[%emt 0:01:56]} 10. Qc2 {[%emt 0:02:31]} c6 {[%emt 0:01:43]} 11. O-O {[%emt 0:03:51]} Ne6 {[%emt 0:03:29]} 12. Be3 {[%emt 0:01:06]} Nh5 {[%emt 0:01:05]} 13. Rad1 {[%emt 0:01:34]} Qe7 {[%emt 0:01:33]} 14. g3 {[%emt 0:00:08]} Bd7 {[%emt 0:06:42]} 15. c5 {[%emt 0:03:35]} Nd4 {[%emt 0:05:09]} 16. Nxd4 {[%emt 0:01:43]} exd4 {[%emt 0:00:04]} 17. Bxd4 {[%emt 0:00:09]} Bxh3 {[%emt 0:00:20]} 18. Bxg7 {[%emt 0:01:33]} Kxg7 {[%emt 0:00:44]} 19. Rfe1 {[%emt 0:11:45]} Qxc5 {[%emt 0:00:13]} 20. b4 {[%emt 0:00:54]} Qg5 {[%emt 0:03:07]} 21. Kh2 {[%emt 0:05:07]} Be6 {[%emt 0:00:22]} 22. Qd2 {[%emt 0:00:22]} Qxd2 {[%emt 0:01:52]} 23. Rxd2 {[%emt 0:00:16]} Nf6 {[%emt 0:00:11]} 24. f4 {[%emt 0:01:30]} Rfd8 {[%emt 0:02:12]} 25. Red1 {[%emt 0:00:09]} Rxd2 {[%emt 0:00:05]} 26. Rxd2 {[%emt 0:00:07]} Kf8 {[%emt 0:05:30]} 27. e5 {[%emt 0:08:45]} Nd5 {[%emt 0:00:30]} 28. Ne4 {[%emt 0:00:53]} Ke7 {[%emt 0:06:14]} 29. Nd6 {[%emt 0:00:49]} Nxb4 {[%emt 0:01:47]} 30. Rb2 {[%emt 0:00:50]} Nxa2 {[%emt 0:01:46]} 31. Rxb7+ {[%emt 0:00:17]} Kf8 {[%emt 0:00:04]} 32. Bf3 {[%emt 0:00:06]} a5 {[%emt 0:04:02]} 33. Bxc6 {[%emt 0:00:13]} Rd8 {[%emt 0:00:22]} 34. Ra7 {[%emt 0:01:06]} Rb8 {[%emt 0:01:59]} 35. g4 {[%emt 0:01:24]} Nb4 {[%emt 0:08:28]} 36. Bf3 {[%emt 0:01:04]} Nd3 {[%emt 0:04:03]} 37. Kg3 {[%emt 0:01:46]} Rd8 {[%emt 0:08:33]} 38. Be4 {[%emt 0:02:22]} Nc5 {[%emt 0:02:22]} 39. Bc6 {[%emt 0:00:47]} a4 {[%emt 0:07:58]} 40. Ra5 {[%emt 0:02:14]} Nd3 {[%emt 0:01:34]} 41. Rxa4 {[%emt 0:01:05]} g5 {[%emt 0:01:14]} 42. f5 {[%emt 0:02:39]} Bb3 {[%emt 0:05:12]} 43. Nxf7 {[%emt 0:11:29]} Bxf7 {[%emt 0:00:51]} 44. e6 {[%emt 0:00:43]} Be8 {[%emt 0:00:30]} 45. Ra7 {[%emt 0:00:46]} Kg8 {[%emt 0:12:13]} 46. e7 {[%emt 0:01:22]} Rc8 {[%emt 0:00:57]} 47. Bd5+ {[%emt 0:00:08]} Kg7 {[%emt 0:00:25]} 48. Ra6 {[%emt 0:00:07]} Ne5 {[%emt 0:02:55]} 49. f6+ {[%emt 0:00:07]} Kh8 {[%emt 0:00:07]} 50. Rd6 {[%emt 0:00:16]} Rc3+ {[%emt 0:00:54]} 51. Kg2 {[%emt 0:00:28]} Nxg4 {[%emt 0:00:29]} 52. Rd8 {[%emt 0:00:16]} Nxf6 {[%emt 0:00:26]} 53. Bf7 {[%emt 0:00:18]} Re3 {[%emt 0:00:36]} 54. Bxe8 {[%emt 0:00:08]} Rxe7 {[%emt 0:00:02]} 55. Bd7+ {[%emt 0:00:36]} Kg7 {[%emt 0:00:09]} 56. Bf5 {[%emt 0:00:15]} Re5 {[%emt 0:00:09]} 57. Bb1 {[%emt 0:00:27]} h5 {[%emt 0:00:21]} 58. Ra8 {[%emt 0:00:10]} Re2+ {[%emt 0:01:08]} 59. Kf1 {[%emt 0:00:55]} Rb2 {[%emt 0:00:05]} 60. Ra7+ {[%emt 0:00:11]} Kh6 {[%emt 0:00:09]} 61. Bd3 {[%emt 0:00:03]} g4 {[%emt 0:00:07]} 62. Ra6 {[%emt 0:00:09]} Kg5 {[%emt 0:00:33]} 63. Ra5+ {[%emt 0:00:05]} Kh4 {[%emt 0:00:28]} 64. Rf5 {[%emt 0:00:08]} Rb6 {[%emt 0:00:12]} 65. Kg2 {[%emt 0:00:45]} Rd6 {[%emt 0:00:15]} 66. Bb5 {[%emt 0:00:41]} Rd5 {[%emt 0:01:32]} 67. Rxd5 {[%emt 0:03:54]} Nxd5 {[%emt 0:00:07]} 68. Bc6 {[%emt 0:00:17]} Nf4+ {[%emt 0:00:23]} 69. Kh2 {[%emt 0:00:08]} Kg5 {[%emt 0:00:06]} 70. Be4 {[%emt 0:00:23]} h4 {[%emt 0:00:19]} 71. Bb7 {[%emt 0:00:15]} g3+ {[%emt 0:00:45]} 72. Kg1 {[%emt 0:00:15]} h3 {[%emt 0:00:06]} 73. Bf3 {[%emt 0:00:07]} Kh4 {[%emt 0:00:43]} 74. Kh1 {[%emt 0:00:44]} Nd3 {[%emt 0:00:08]} 75. Kg1 {[%emt 0:00:18]} Nf2 {[%emt 0:00:13]} 76. Bh1 {[%emt 0:01:34]} h2+ {[%emt 0:00:29]} 77. Kg2 {[%emt 0:00:07]} Kg4 {[%emt 0:00:04]} 0-1

[Event "48th Indian U15-ch Open 2023"]
[Site "Jalgaon"]
[Date "2023.12.30"]
[Round "5.10"]
[White "Mukund Hemant Agarwal"]
[Black "Anirudh R"]
[Result "1-0"]
[WhiteElo "1852"]
[BlackElo "1621"]
[PlyCount "107"]
[EventDate "2023.12.30"]
[EventType "swiss"]
[EventCountry "IND"]
[TimeControl "5400+30"]

1. e4 {[%emt 0:00:01]} e6 {[%emt 0:00:53]} 2. d4 {[%emt 0:00:14]} d5 {[%emt 0:00:02]} 3. Nd2 {[%emt 0:00:19]} c5 {[%emt 0:00:09]} 4. Ngf3 {[%emt 0:00:21]} cxd4 {[%emt 0:00:17]} 5. Nxd4 {[%emt 0:00:20]} Nf6 {[%emt 0:01:01]} 6. exd5 {[%emt 0:00:08]} Qxd5 {[%emt 0:00:29]} 7. Nb5 {[%emt 0:00:42]} Qd8 {[%emt 0:03:13]} 8. Nc4 {[%emt 0:00:40]} Qxd1+ {[%emt 0:12:30]} 9. Kxd1 {[%emt 0:00:03]} Na6 {[%emt 0:00:15]} 10. Nbd6+ {[%emt 0:05:13]} Bxd6 {[%emt 0:04:03]} 11. Nxd6+ {[%emt 0:00:13]} Ke7 {[%emt 0:00:04]} 12. Bxa6 {[%emt 0:15:02]} Rd8 {[%emt 0:06:32]} 13. Bd3 {[%emt 0:03:20]} Rxd6 {[%emt 0:01:32]} 14. Bf4 {[%emt 0:21:50]} Rd8 {[%emt 0:01:40]} 15. Ke2 {[%emt 0:02:13]} Bd7 {[%emt 0:01:13]} 16. c4 {[%emt 0:09:05]} Bc6 {[%emt 0:01:27]} 17. f3 {[%emt 0:00:17]} a5 {[%emt 0:05:57]} 18. b3 {[%emt 0:03:29]} Nd7 {[%emt 0:04:13]} 19. Rhd1 {[%emt 0:17:45]} e5 {[%emt 0:10:48]} 20. Be3 {[%emt 0:00:41]} Nf8 {[%emt 0:07:34]} 21. a3 {[%emt 0:06:52]} Ne6 {[%emt 0:01:40]} 22. b4 {[%emt 0:02:36]} Ba4 {[%emt 0:06:19]} 23. Rdc1 {[%emt 0:03:53]} Nd4+ {[%emt 0:02:21]} 24. Bxd4 {[%emt 0:00:02]} Rxd4 {[%emt 0:00:10]} 25. Be4 {[%emt 0:04:54]} Bc6 {[%emt 0:02:29]} 26. Bd3 {[%emt 0:00:47]} Bd7 {[%emt 0:13:10]} 27. b5 {[%emt 0:01:35]} Rd8 {[%emt 0:00:54]} 28. Rc3 {[%emt 0:00:53]} Be6 {[%emt 0:00:32]} 29. Ke3 {[%emt 0:00:38]} f5 {[%emt 0:01:17]} 30. Rac1 {[%emt 0:00:36]} b6 {[%emt 0:01:02]} 31. Be2 {[%emt 0:00:18]} Rd2 {[%emt 0:03:23]} 32. c5 {[%emt 0:00:33]} f4+ {[%emt 0:00:22]} 33. Kf2 {[%emt 0:00:04]} bxc5 {[%emt 0:02:52]} 34. Kf1 {[%emt 0:01:01]} c4 {[%emt 0:03:10]} 35. Bxc4 {[%emt 0:00:29]} Rb2 {[%emt 0:00:28]} 36. Bd3 {[%emt 0:00:45]} Rd2 {[%emt 0:03:12]} 37. Be2 {[%emt 0:00:18]} Rb2 {[%emt 0:00:54]} 38. R1c2 {[%emt 0:00:28]} Rb1+ {[%emt 0:00:30]} 39. Kf2 {[%emt 0:00:09]} Bf5 {[%emt 0:00:18]} 40. Rc7+ {[%emt 0:00:24]} Kf8 {[%emt 0:00:23]} 41. R2c5 {[%emt 0:00:49]} Bd3 {[%emt 0:01:08]} 42. Rc8 {[%emt 0:00:17]} Bxe2 {[%emt 0:00:29]} 43. Rxd8+ {[%emt 0:00:05]} Ke7 {[%emt 0:00:03]} 44. Rdd5 {[%emt 0:00:30]} Bf1 {[%emt 0:00:27]} 45. Rxe5+ {[%emt 0:00:06]} Kf6 {[%emt 0:00:06]} 46. Re1 {[%emt 0:00:29]} Rxb5 {[%emt 0:00:16]} 47. Rc6+ {[%emt 0:00:13]} Kf5 {[%emt 0:00:07]} 48. Kxf1 {[%emt 0:00:05]} a4 {[%emt 0:00:19]} 49. Rec1 {[%emt 0:00:09]} Ke5 {[%emt 0:00:15]} 50. R1c5+ {[%emt 0:00:04]} Rxc5 {[%emt 0:00:04]} 51. Rxc5+ {[%emt 0:00:01]} Kd4 {[%emt 0:00:09]} 52. Ra5 {[%emt 0:00:03]} g5 {[%emt 0:00:10]} 53. Rxa4+ {[%emt 0:00:03]} Kd5 {[%emt 0:00:06]} 54. Ra5+ {[%emt 0:00:03]} 1-0

[Event "48th Indian U15-ch Open 2023"]
[Site "Jalgaon"]
[Date "2023.12.31"]
[Round "6.1"]
[White "Mayank Chakraborty"]
[Black "Md Imran"]
[Result "1/2-1/2"]
[ECO "D27"]
[WhiteElo "2403"]
[BlackElo "2174"]
[Annotator "RC"]
[PlyCount "60"]
[EventDate "2023.12.30"]
[EventType "swiss"]
[EventCountry "IND"]
[SourceTitle "playchess.com"]
[Source "ChessBase"]
[SourceQuality "1"]
[TimeControl "5400+30"]

1. d4 {[%emt 0:00:01]} d5 {[%emt 0:00:08]} 2. c4 {[%emt 0:00:02]} e6 {[%emt 0:00:11]} 3. Nf3 {[%emt 0:00:04]} dxc4 {[%emt 0:00:32]} 4. e3 {[%emt 0:03:00]} Nf6 {[%emt 0:01:17]} 5. Bxc4 {[%emt 0:00:07]} c5 {[%emt 0:00:05]} 6. O-O {[%emt 0:00:40]} a6 {[%emt 0:00:02]} 7. a4 {[%emt 0:02:36]} cxd4 {[%emt 0:00:28]} 8. exd4 {[%emt 0:00:15]} Nc6 {[%emt 0:00:09]} 9. Nc3 {[%emt 0:01:11]} Be7 {[%emt 0:01:07]} 10. Bg5 {[%emt 0:06:30]} O-O {[%emt 0:00:41]} 11. Re1 {[%emt 0:01:25]} h6 {[%emt 0:04:11]} 12. Bh4 {[%emt 0:05:46]} b6 {[%emt 0:13:14]} 13. d5 {[%emt 0:01:34]} Nxd5 {[%emt 0:12:58]} 14. Bxd5 {[%emt 0:07:13]} exd5 {[%emt 0:00:58]} 15. Qxd5 {[%emt 0:00:51]} Qxd5 {[%emt 0:11:07]} 16. Nxd5 {[%emt 0:00:15]} Bc5 {[%emt 0:01:02]} 17. a5 {[%emt 0:01:36]} Nb4 {[%emt 0:10:16]} 18. Nxb6 {[%emt 0:09:42]} Bxb6 {[%emt 0:00:17]} 19. axb6 {[%emt 0:00:01]} Nc2 {[%emt 0:02:46]} 20. Bg3 {[%emt 0:00:24]} Nxa1 {[%emt 0:01:07]} 21. Rxa1 {[%emt 0:00:06]} Bb7 {[%emt 0:00:21]} 22. Nd4 {[%emt 0:03:53]} Rfd8 {[%emt 0:03:02]} 23. Nb3 {[%emt 0:03:13]} Rd5 {[%emt 0:03:13]} 24. Na5 {[%emt 0:06:35]} Rad8 {[%emt 0:01:27]} 25. Kf1 {[%emt 0:02:36]} Ba8 {[%emt 0:02:13]} 26. b7 {[%emt 0:02:42]} Rxa5 {[%emt 0:00:02]} 27. Rxa5 {[%emt 0:00:01]} Bxb7 {[%emt 0:00:01]} 28. f3 {[%emt 0:00:02]} Rd5 {[%emt 0:00:01]} 29. Rxd5 {[%emt 0:00:01]} Bxd5 {[%emt 0:00:16]} 30. Kf2 {[%emt 0:00:03]} f6 {[%emt 0:00:03]} 1/2-1/2